Workbook

Sheet MYP, MSS
B1: Teemu Joensuu | E1: 11.6.1977
B2: YKKÖSPESIS | E2: Runkosarja | L2: Runkosarja TOP-10 | Q2: Jatkosarjat | X2: SUOMENSARJA | AA2: Runkosarja | AH2: Runkosarja TOP-10 | AM2: Jatkosarjat
B3: Vuosi | C3: Sija | D3: Seura | E3: OTT | F3: KUN | G3: LÖI | H3: TOI | I3: KL | J3: KL-% | L3: LÖI | M3: TOI | N3: L+T | O3: KL | Q3: OTT | R3: KUN | S3: LÖI | T3: TOI | U3: KL | V3: KL-% | X3: Vuosi | Y3: Sija | Z3: Seura | AA3: OTT | AB3: KUN | AC3: LÖI | AD3: TOI | AE3: KL | AF3: KL-% | AH3: LÖI | AI3: TOI | AJ3: L+T | AK3: KL | AM3: OTT | AN3: KUN | AO3: LÖI | AP3: TOI | AQ3: KL | AR3: KL-%
B4: 1994 | C4: 4. | D4: NJ 2 | F4: maakuntasarja
B5: 1995 | C5: 8. | D5: NJ 2 | F5: maakuntasarja
B6: 1995 | C6: 9. | D6: NJ | E6: 1 | F6: 0 | G6: 0 | H6: 0 | I6: 0
B7: 1996 | C7: 3. | D7: NJ 2 | F7: maakuntasarja
B8: 1997 | C8: 14. | D8: NJ | E8: 26 | F8: 0 | G8: 4 | H8: 10 | I8: 75
X9: 1998 | Y9: 2. | Z9: NJ
X10: 1999 | Y10: 1. | Z10: NJ
B11: 2000 | C11: 6. | D11: NJ | E11: 26 | F11: 0 | G11: 6 | H11: 11 | I11: 70 | J11: 43.8 % | K11: 160
B12: 2001 | C12: 8. | D12: KPL | E12: 26 | F12: 2 | G12: 19 | H12: 21 | I12: 83 | J12: 54.2 % | K12: 153
B13: 2002 | C13: 3. | D13: KPL | E13: 7 | F13: 0 | G13: 1 | H13: 2 | I13: 12 | J13: 37.5 % | K13: 32 | X13: 2002 | Y13: 5. | Z13: Puhti | AA13: 9 | AB13: 3 | AC13: 16 | AD13: 14 | AE13: 42 | AF13: 57.5 % | AG13: 73
X14: 2003 | Y14: 2. | Z14: YKV | AA14: 16 | AB14: 0 | AC14: 13 | AD14: 14 | AE14: 57 | AF14: 55.9 % | AG14: 102 | AM14: 6 | AN14: 0 | AO14: 1 | AP14: 1 | AQ14: 11 | AR14: 30.6 % | AS14: 36
X15: 2004 | Y15: 2. | Z15: YKV | AA15: 15 | AB15: 0 | AC15: 25 | AD15: 10 | AE15: 58 | AF15: 59.2 % | AG15: 98 | AH15: 7. | AJ15: 10. | AM15: 5 | AN15: 0 | AO15: 3 | AP15: 8 | AQ15: 16 | AR15: 55.2 % | AS15: 29
X17: 2006 | Y17: 3. | Z17: NJ 2 | AA17: 4 | AB17: 2 | AC17: 11 | AD17: 11 | AE17: 26 | AF17: 78.8 % | AG17: 33 | AM17: 2 | AN17: 0 | AO17: 1 | AP17: 0 | AQ17: 5 | AR17: 41.7 % | AS17: 12
B18: YHTEENSÄ | E18: =SUM(E4:E17) -> 86 | F18: =SUM(F4:F17) -> 2 | G18: =SUM(G4:G17) -> 30 | H18: =SUM(H4:H17) -> 44 | I18: =SUM(I4:I17) -> 240 | J18: 0.0 % | K18: =SUM(K4:K17) -> 345 | Q18: =SUM(Q4:Q17) -> 0 | R18: =SUM(R4:R17) -> 0 | S18: =SUM(S4:S17) -> 0 | T18: =SUM(T4:T17) -> 0 | U18: =SUM(U4:U17) -> 0 | V18: 0.0 % | W18: =SUM(W4:W17) -> 0 | X18: YHTEENSÄ | AA18: =SUM(AA4:AA17) -> 44 | AB18: =SUM(AB4:AB17) -> 5 | AC18: =SUM(AC4:AC17) -> 65 | AD18: =SUM(AD4:AD17) -> 49 | AE18: =SUM(AE4:AE17) -> 183 | AF18: =PRODUCT(AE18/AG18) -> 59.8 % | AG18: =SUM(AG4:AG17) -> 306 | AM18: =SUM(AM4:AM17) -> 13 | AN18: =SUM(AN4:AN17) -> 0 | AO18: =SUM(AO4:AO17) -> 5 | AP18: =SUM(AP4:AP17) -> 9 | AQ18: =SUM(AQ4:AQ17) -> 32 | AR18: =PRODUCT(AQ18/AS18) -> 41.6 % | AS18: =SUM(AS4:AS17) -> 77
B20: KAIKKI OTTELUT | E20: OTT | F20: KUN | G20: LÖI | H20: TOI | I20: KL | J20: KL-% | L20: ka/L | M20: ka/T | N20: ka/l+t | O20: ka/kl | R20: Seurat | T20: NJ = Nurmon Jymy (1925)
B21: SUPERPESIS | E21: 0 | F21: 0 | G21: 0 | H21: 0 | I21: 0 | J21: 0.0 % | K21: 0 | L21: 0.00 | M21: 0.00 | N21: 0.00 | O21: 0.00 | T21: KPL = Kouvolan Pallonlyöjät (1931)
B22: YKKÖSPESIS | E22: =PRODUCT(E18+Q18) -> 86 | F22: =PRODUCT(F18+R18) -> 2 | G22: =PRODUCT(G18+S18) -> 30 | H22: =PRODUCT(H18+T18) -> 44 | I22: =PRODUCT(I18+U18) -> 240 | K22: =PRODUCT(K18+W18) -> 345 | L22: =PRODUCT((F22+G22)/E22) -> 0.37 | M22: =PRODUCT(H22/E22) -> 0.51 | N22: =PRODUCT((F22+G22+H22)/E22) -> 0.88 | O22: =PRODUCT(I22/59) -> 4.07 | T22: Puhti = Kuusankosken Puhti (1910)
B23: SUOMENSARJA | E23: =PRODUCT(AA18+AM18) -> 57 | F23: =PRODUCT(AB18+AN18) -> 5 | G23: =PRODUCT(AC18+AO18) -> 70 | H23: =PRODUCT(AD18+AP18) -> 58 | I23: =PRODUCT(AE18+AQ18) -> 215 | J23: =PRODUCT(I23/K23) -> 56.1 % | K23: =PRODUCT(AG18+AS18) -> 383 | L23: =PRODUCT((F23+G23)/E23) -> 1.32 | M23: =PRODUCT(H23/E23) -> 1.02 | N23: =PRODUCT((F23+G23+H23)/E23) -> 2.33 | O23: =PRODUCT(I23/E23) -> 3.77 | T23: YKV = Ylistaron Kilpa-Veljet (1945)
B24: YHTEENSÄ | E24: =SUM(E21:E23) -> 143 | F24: =SUM(F21:F23) -> 7 | G24: 100 | H24: 102 | I24: 455 | K24: =SUM(K21:K23) -> 728 | L24: =PRODUCT((F24+G24)/E24) -> 0.75 | M24: =PRODUCT(H24/E24) -> 0.71 | N24: =PRODUCT((F24+G24+H24)/E24) -> 1.46 | O24: =PRODUCT(I24/117) -> 3.89
